fUST/lending_fUST_20241024
["ID","MTS","AMOUNT","RATE_DAILY","PERIOD"]
[340714460,1729699832625,-1.3556456,0.00013573,2]
[340714461,1729699832637,-241.18227069,0.00013573,2]
[340714462,1729699832647,-250.0,0.00013699,2]
[340714463,1729699832657,-400.0,0.00013973,2]
[340714464,1729699832666,-206.19969,0.00013973,2]
[340714465,1729699832675,-2186.1763968,0.00015608,10]
[340714466,1729699832684,-159.090909,0.00015619,2]
[340714467,1729699832695,-237.168404,0.00015713,2]
[340714468,1729699832704,-642.0351712,0.0001634,2]
[340714469,1729699832714,-816.04,0.000165,2]
[340714470,1729699832723,-642.0351712,0.0001684,2]
[340714471,1729699832733,-1000.0,0.00017059,2]
[340714472,1729699832742,-339.47052687,0.00017099,2]
[340714473,1729699832752,-156.0,0.0001711,2]
[340714474,1729699832761,-933.25349395,0.0001717,2]
[340714475,1729699832771,-300.0,0.00017171,2]
[340714476,1729699832780,-300.0,0.00017172,2]
[340714477,1729699832790,-500.0,0.00017173,2]
[340714478,1729699832799,-500.0,0.00017173,2]
[340714479,1729699832809,-500.0,0.00017173,2]
[340714480,1729699832818,-491.54570578,0.00017189,2]
[340714481,1729699832828,-480.1977963,0.00017189,2]
[340714482,1729699832837,-363.34468834,0.0001719,2]
[340714483,1729699832847,-10810.52024765,0.0001719,2]
[340714484,1729699832859,-3281.35684205,0.0001719,2]
[340714485,1729699832868,-189615.51994042,0.0001719,2]
[340714543,1729699838832,-89.50590738,0.0001719,2]
[340714545,1729699838844,-582.21640925,0.0001719,2]
[340714727,1729699840768,-9653.67398695,0.0001719,2]
[340714729,1729699840778,-3742.72601305,0.000172,2]
[340714789,1729699843880,-1652.925,0.000172,2]
[340714805,1729699846838,-3343.72855157,0.000172,2]
[340714806,1729699846851,-1300.0,0.000172,2]
[340714807,1729699846863,-461.81211323,0.000172,2]
[340714808,1729699846877,-71092.49581863,0.000172,2]
[340714809,1729699846887,-497.92779239,0.000172,2]
[340714810,1729699846897,-500.0,0.000172,2]
[340714811,1729699846906,-612.0,0.000172,2]
[340714812,1729699846917,-896.9046,0.000172,2]
[340714813,1729699846927,-500.0,0.0001726,2]
[340714814,1729699846939,-642.0351712,0.0001734,2]
[340714815,1729699846948,-1000.0,0.00017447,2]
[340714816,1729699846960,-339.47052683,0.00017473,2]
[340714817,1729699846970,-500.0,0.00017534,2]
[340714818,1729699846980,-2916.0,0.0001756,2]
[340714819,1729699846991,-2009.20715618,0.000176,2]
[340714820,1729699847002,-421.098755,0.00017644,2]
[340714821,1729699847013,-500.0,0.00017808,2]
[340714822,1729699847024,-642.0351712,0.0001784,2]
[340714823,1729699847033,-339.47052683,0.00017847,2]
[340714824,1729699847043,-1500.0,0.00017847,2]
[340714825,1729699847052,-2465.66861916,0.00018,2]
[340714826,1729699847061,-427.98,0.00018,2]
[340714827,1729699847071,-262.932752,0.00018,2]
[340714828,1729699847080,-1013.36498,0.00018,2]
[340714829,1729699847090,-500.0,0.00018082,2]
[340714830,1729699847099,-150.112233,0.000181,2]
[340714831,1729699847109,-145.67791441,0.00018221,2]
[340714832,1729699847120,-193.79261242,0.00018221,2]
[340714833,1729699847130,-150.112233,0.000183,2]
[340714834,1729699847139,-120.47979239,0.00018315,2]
[340714835,1729699847156,-664.65301874,0.00018315,2]
[340714836,1729699847169,-1214.86718887,0.00018315,2]
[340714837,1729699847178,-642.0351712,0.0001834,2]
[340714838,1729699847188,-500.0,0.00018356,2]
[340714839,1729699847197,-150.112233,0.000184,2]
[340714840,1729699847209,-1714.0,0.000185,2]
[340714841,1729699847221,-157.0,0.000185,2]
[340714842,1729699847234,-500.0,0.000185,2]
[340714843,1729699847245,-500.0,0.000185,2]
[340714844,1729699847256,-500.0,0.000185,2]
[340714845,1729699847267,-500.0,0.000185,2]
[340714846,1729699847276,-1000.0,0.000185,2]
[340714847,1729699847286,-339.47052683,0.00018595,2]
[340714848,1729699847295,-150.112233,0.000186,2]
[340714849,1729699847305,-150.112237,0.000186,2]
[340714850,1729699847316,-1099.19789415,0.00018615,2]
[340714851,1729699847325,-500.0,0.0001863,2]
[340714852,1729699847336,-600.0,0.0001863,2]
[340714853,1729699847347,-500.0,0.0001863,2]
[340714854,1729699847357,-207.29616288,0.0001863,2]
[340714855,1729699847371,-500.0,0.0001863,2]
[340714856,1729699847381,-500.0,0.0001863,2]
[340714857,1729699847391,-189.69957365,0.0001863,2]
[340714858,1729699847401,-500.16576017,0.00018673,2]
[340714859,1729699847411,-500.0,0.00018673,2]
[340714860,1729699847421,-500.0,0.00018673,2]
[340714861,1729699847431,-503.98406867,0.00018673,2]
[340714862,1729699847440,-500.0,0.00018673,2]
[340714863,1729699847450,-509.54141169,0.00018673,2]
[340714864,1729699847462,-500.0,0.00018673,2]
[340714865,1729699847471,-500.0,0.00018673,2]
[340714866,1729699847481,-500.0,0.00018673,2]
[340714867,1729699847491,-7045.93854486,0.00018675,2]
[340714868,1729699847500,-8242.81343548,0.00018675,2]
[340714928,1729701031813,-250.0,0.00013699,2]
[340714929,1729701031823,-350.0,0.00013973,2]
[340714962,1729701037887,-50.0,0.00013973,2]
[340714963,1729701037896,-300.0,0.00014999,2]
[340714964,1729701037906,-300.0,0.00014999,2]
[340714965,1729701037916,-26259.6,0.00015,10]
[340714966,1729701037926,-420.0,0.00016416,2]
[340714967,1729701037935,-420.0,0.00016499,2]
[340714968,1729701037944,-734.44,0.00017,2]
[340714969,1729701037954,-155.01,0.00017173,2]
[340714970,1729701037963,-157.06140125,0.000176,2]
[340714971,1729701037974,-896.0,0.000177,2]
[340714972,1729701037984,-311.74871343,0.000177,2]
[340714973,1729701037993,-501.32919432,0.0001779,2]
[340714974,1729701038002,-587.0,0.00017966,2]
[340714975,1729701038012,-781.55192488,0.00018,2]
[340714976,1729701038021,-187.0,0.00018149,2]
[340714977,1729701038031,-2869.92029652,0.0001838,2]
[340714978,1729701038040,-1000.0,0.000185,2]
[340714979,1729701038052,-156.0,0.0001859,2]
[340714980,1729701038062,-500.0,0.00018599,2]
[340714981,1729701038072,-500.0,0.00018599,2]
[340714982,1729701038081,-500.0,0.00018599,2]
[340714983,1729701038090,-500.0,0.00018599,2]
[340714984,1729701038099,-500.0,0.00018599,2]
[340714985,1729701038108,-500.0,0.00018599,2]
[340714986,1729701038118,-500.0,0.00018599,2]
[340714987,1729701038127,-500.0,0.00018599,2]
[340714988,1729701038136,-500.0,0.00018599,2]
[340714989,1729701038145,-325.24611669,0.00018599,2]
[340714990,1729701038154,-9698.44945387,0.000186,10]
[340714991,1729701038163,-500.0,0.00018665,2]
[340714992,1729701038172,-500.0,0.00018673,2]
[340714993,1729701038181,-600.0,0.00018685,2]
[340714994,1729701038190,-560.7000885,0.00018694,2]
[340714995,1729701038199,-13374.0396013,0.00018695,2]
[340714996,1729701038208,-79418.703425,0.00018695,2]
[340714997,1729701038221,-446.79483,0.00018695,2]
[340715008,1729701041320,-4621.89568901,0.00018695,2]
[340715009,1729701041379,-94693.37097299,0.00018695,2]
[340715010,1729701041389,-151.0,0.00018715,2]
[340715011,1729701041399,-151.0,0.00018715,2]
[340715012,1729701041408,-1643.0,0.00018715,2]
[340715013,1729701041420,-151.0,0.00018773,2]
[340715014,1729701041429,-151.0,0.00018773,2]
[340715015,1729701041439,-151.0,0.00018773,2]
[340715016,1729701041448,-151.0,0.00018773,2]
[340715017,1729701041457,-151.0,0.00018773,2]
[340715018,1729701041467,-151.0,0.00018773,2]
[340715019,1729701041476,-165.737506,0.00018773,2]
[340715020,1729701041486,-151.0,0.00018773,2]
[340715021,1729701041495,-500.0,0.00018773,2]
[340715022,1729701041506,-500.0,0.00018773,2]
[340715023,1729701041515,-500.0,0.00018773,2]
[340715024,1729701041524,-151.0,0.00018783,2]
[340715025,1729701041534,-151.0,0.00018783,2]
[340715026,1729701041544,-151.0,0.00018783,2]
[340715027,1729701041555,-151.0,0.00018783,2]
[340715028,1729701041564,-151.0,0.00018783,2]
[340715029,1729701041574,-151.0,0.00018783,2]
[340715030,1729701041584,-151.0,0.00018783,2]
[340715031,1729701041597,-151.0,0.00018783,2]
[340715032,1729701041607,-151.0,0.00018783,2]
[340715033,1729701041616,-151.0,0.00018783,2]
[340715034,1729701041625,-151.0,0.00018783,2]
[340715035,1729701041634,-151.0,0.00018783,2]
[340715036,1729701041644,-10000.0,0.00018783,2]
[340715037,1729701041653,-10000.0,0.00018783,2]
[340715038,1729701041663,-10000.0,0.00018783,2]
[340715039,1729701041673,-10000.0,0.00018783,2]
[340715040,1729701041682,-10000.0,0.00018783,2]
[340715041,1729701041694,-10000.0,0.00018783,2]
[340715042,1729701041703,-151.0,0.00018783,2]
[340715043,1729701041713,-177.492452,0.00018783,2]
[340715044,1729701041722,-151.0,0.00018783,2]
[340715045,1729701041732,-150.112233,0.000188,2]
[340715046,1729701041742,-150.112233,0.000188,2]
[340715047,1729701041751,-989.27810478,0.00018804,2]
[340715048,1729701041761,-4025.00201085,0.00018884,2]
[340715049,1729701041771,-2150.58184993,0.00018884,2]
[340715050,1729701041781,-6687.01980063,0.00018884,2]
[340715051,1729701041790,-67657.04444397,0.00018884,3]
[340715052,1729701042200,-445.48936314,0.00018884,3]
[340715069,1729701042860,-14189.20227275,0.00018884,3]
[340715070,1729701042871,-1192.04,0.00018884,3]
[340715091,1729701045815,-6106.60637884,0.00018884,3]
[340715092,1729701045825,-151.0,0.00018894,2]
[340715093,1729701045834,-166.565624,0.00018894,2]
[340715094,1729701045843,-166.565624,0.00018894,2]
[340715095,1729701045852,-6687.01980063,0.00018894,2]
[340715096,1729701045861,-89590.3824587,0.00018894,3]
[340715097,1729701045870,-399.2,0.000189,2]
[340715098,1729701045880,-150.112233,0.000189,2]
[340715099,1729701045889,-150.112233,0.000189,2]
[340715100,1729701045909,-151.0,0.000189,2]
[340715101,1729701045919,-151.0,0.000189,2]
[340715102,1729701045929,-151.0,0.000189,2]
[340715103,1729701045939,-151.0,0.000189,2]
[340715104,1729701045949,-151.0,0.000189,2]
[340715105,1729701045958,-151.0,0.000189,2]
[340715106,1729701045968,-151.0,0.000189,2]
[340715107,1729701045979,-151.0,0.000189,2]
[340715108,1729701045990,-151.0,0.000189,2]
[340715109,1729701046001,-151.0,0.000189,2]
[340715110,1729701046010,-151.0,0.000189,2]
[340715111,1729701046020,-151.0,0.000189,2]
[340715112,1729701046029,-151.0,0.000189,2]
[340715113,1729701046039,-151.0,0.000189,2]
[340715114,1729701046050,-151.0,0.000189,2]
[340715115,1729701046060,-10000.0,0.000189,2]
[340715116,1729701046069,-10000.0,0.000189,2]
[340715117,1729701046078,-10000.0,0.000189,2]
[340715118,1729701046087,-10000.0,0.000189,2]
[340715119,1729701046097,-3791.58664562,0.000189,2]
[340715120,1729701046137,-6208.41335438,0.000189,2]
[340715121,1729701046148,-3911.58664562,0.000189,2]
[340715122,1729701046160,-6088.41335438,0.000189,2]
[340715123,1729701046170,-151.0,0.000189,2]
[340715124,1729701046180,-151.0,0.000189,2]
[340715125,1729701046190,-500.0,0.00018904,2]
[340715126,1729701046199,-151.0,0.00018904,2]
[340715127,1729701046209,-151.0,0.00018904,2]
[340715128,1729701046219,-151.0,0.00018904,2]
[340715129,1729701046228,-151.0,0.00018904,2]
[340715130,1729701046239,-151.0,0.00018904,2]
[340715131,1729701046248,-151.0,0.00018904,2]
[340715132,1729701046258,-151.0,0.00018904,2]
[340715133,1729701046268,-151.0,0.00018904,2]
[340715134,1729701046279,-151.0,0.00018904,2]
[340715135,1729701046288,-151.0,0.00018904,2]
[340715136,1729701046298,-151.0,0.00018904,2]
[340715137,1729701046309,-151.0,0.00018904,2]
[340715138,1729701046320,-151.0,0.00018904,2]
[340715139,1729701046330,-151.0,0.00018904,2]
[340715140,1729701046339,-8892.59298264,0.00018904,2]
[340715141,1729701046351,-1107.40701736,0.00018904,2]
[340715142,1729701046360,-10000.0,0.00018904,2]
[340715143,1729701046369,-151.0,0.00018904,2]
[340715144,1729701046378,-5570.95402923,0.00018904,2]
[340715145,1729701164905,2330.272686,0.0001,2]
[340715195,1729702062404,17160.01,0.00011,2]
[340715238,1729702231930,-250.0,0.00013699,2]
[340715240,1729702231941,-380.0,0.00013973,2]
[340715243,1729702231951,-178.49804833,0.0001599,2]
[340715245,1729702231961,-3000.0,0.00016,2]
[340715247,1729702231971,-3000.0,0.0001601,2]
[340715249,1729702231981,-298.0,0.00016019,2]
[340715251,1729702231991,-300.0,0.00016019,2]
[340715253,1729702232001,-3000.0,0.0001602,2]
[340715255,1729702232011,-3000.0,0.0001603,2]
[340715257,1729702232020,-3000.0,0.0001604,2]
[340715259,1729702232030,-3000.0,0.0001605,2]
[340715261,1729702232040,-3000.0,0.0001606,2]
[340715263,1729702232049,-3000.0,0.0001607,2]
[340715265,1729702232059,-3000.0,0.0001608,2]
[340715267,1729702232069,-3000.0,0.0001609,2]
[340715268,1729702232078,-278.61275717,0.0001609,2]
[340715270,1729702232088,-3000.0,0.000161,2]
[340715272,1729702232098,-3000.0,0.0001611,2]
[340715273,1729702232110,-1000.93428424,0.00016119,2]
[340715275,1729702232120,-3000.0,0.0001612,2]
[340715278,1729702232131,-536.13845741,0.00016129,2]
[340715280,1729702232141,-4048.448868,0.0001613,2]
[340715282,1729702232151,-500.0,0.00017167,2]
[340715283,1729702232160,-155.01,0.0001719,2]
[340715285,1729702232170,-661.0,0.000172,2]
[340715287,1729702232179,-1000.0,0.00017441,2]
[340715288,1729702232189,-420.0,0.00017514,2]
[340715289,1729702232200,-500.0,0.00017675,7]
[340715290,1729702232210,-500.0,0.00017675,7]
[340715291,1729702232219,-500.0,0.00017675,7]
[340715292,1729702232228,-500.0,0.00017675,7]
[340715293,1729702232238,-294.42,0.00017675,7]
[340715294,1729702232249,-500.0,0.00017675,7]
[340715295,1729702232260,-500.0,0.00017675,7]
[340715296,1729702232270,-500.0,0.00017675,7]
[340715297,1729702232280,-500.0,0.00017675,7]
[340715298,1729702232290,-500.0,0.00017675,7]
[340715299,1729702232300,-500.0,0.00017675,7]
[340715300,1729702232309,-500.0,0.00017675,7]
[340715301,1729702232318,-500.0,0.00017675,7]
[340715302,1729702232328,-500.0,0.00017675,7]
[340715303,1729702232337,-500.0,0.00017675,7]
[340715304,1729702232346,-500.0,0.00017675,7]
[340715305,1729702232358,-500.0,0.00017675,7]
[340715306,1729702232368,-500.0,0.00017675,7]
[340715307,1729702232377,-500.0,0.00017675,7]
[340715308,1729702232386,-500.0,0.00017675,7]
[340715309,1729702232395,-500.0,0.00017675,7]
[340715310,1729702232405,-500.0,0.00017675,7]
[340715311,1729702232413,-500.0,0.00017675,7]
[340715312,1729702232422,-1500.0,0.00017841,2]
[340715313,1729702232431,-457.11,0.00017904,7]
[340715314,1729702232440,-832.404929,0.00017955,2]
[340715315,1729702232450,-350.0,0.00018,2]
[340715316,1729702232459,-341.58,0.0001811,2]
[340715317,1729702232472,-2000.0,0.00018309,2]
[340715318,1729702232481,-370.8997724,0.00018793,2]
[340715319,1729702232491,-156.0,0.0001881,2]
[340715320,1729702232501,-370.89977237,0.0001882,2]
[340715321,1729702232510,-2500.0,0.00018828,2]
[340715322,1729702232520,-370.89977237,0.00018847,2]
[340715323,1729702232530,-370.89977237,0.00018873,2]
[340715324,1729702232539,-439.72524405,0.00018889,2]
[340715325,1729702232549,-15154.3022578,0.0001889,2]
[340715326,1729702232559,-16772.06163457,0.0001889,3]
[340715327,1729702232572,-24907.848621,0.0001889,3]
[340715328,1729702232588,-334.89,0.0001889,3]
[340715344,1729702238204,-29657.50571133,0.0001889,3]
[340715345,1729702238214,-500.0,0.00018893,2]
[340715346,1729702238223,-15154.3022578,0.00018894,2]
[340715347,1729702238232,-32970.11009114,0.00018894,3]
[340715348,1729702238243,-504.68,0.00018894,3]
[340715349,1729702238262,-1346.5,0.00018894,3]
[340715350,1729702238273,-4330.84,0.00018894,3]
[340715371,1729702243373,-13424.38804984,0.00018894,3]
[340715372,1729702243486,-452.92248103,0.00018894,3]
[340715388,1729702246092,-18642.86534489,0.00018894,3]
[340715389,1729702246101,-600.0,0.00018899,2]
[340715390,1729702246112,-31311.0,0.000189,2]
[340715391,1729702246123,-370.89977237,0.000189,2]
[340715392,1729702246132,-890.35029423,0.000189,2]
[340715393,1729702246142,-5000.0,0.00018904,2]
[340715394,1729702246151,-5000.0,0.00018904,2]
[340715395,1729702246161,-5000.0,0.00018904,2]
[340715396,1729702246171,-5000.0,0.00018904,2]
[340715397,1729702246180,-5000.0,0.00018904,2]
[340715398,1729702246190,-2218.80531067,0.00018904,2]
[340715399,1729702246199,-151.0,0.0001897,2]
[340715400,1729702246208,-151.0,0.0001897,2]
[340715401,1729702246218,-151.0,0.0001897,2]
[340715402,1729702246228,-208.222262,0.0001897,2]
[340715403,1729702246238,-208.222262,0.0001897,2]
[340715404,1729702246247,-30308.6045156,0.0001897,3]
[340715405,1729702246257,-143344.611934,0.0001897,3]
[340715406,1729702246267,-501.47036253,0.00018973,2]
[340715407,1729702246276,-500.0,0.00018973,2]
[340715408,1729702246286,-500.0,0.00018973,2]
[340715409,1729702246295,-310.26493964,0.00018973,2]
[340715410,1729702246304,-451.87133675,0.00018973,2]
[340715411,1729702246314,-500.0,0.00018973,2]
[340715412,1729702246325,-501.53374175,0.00018973,2]
[340715413,1729702246334,-501.14005583,0.00018973,2]
[340715414,1729702246344,-500.56752319,0.00018973,2]
[340715415,1729702246353,-500.0,0.00018973,2]
[340715416,1729702246363,-500.0,0.00018973,2]
[340715417,1729702246374,-500.0,0.00018986,2]
[340715418,1729702246383,-151.0,0.0001899,2]
[340715419,1729702246394,-151.0,0.0001899,2]
[340715420,1729702246404,-151.0,0.0001899,2]
[340715421,1729702246413,-151.0,0.0001899,2]
[340715422,1729702246423,-45462.9067735,0.0001899,3]
[340715423,1729702246433,-71672.3059669,0.0001899,3]
[340715424,1729702246443,-151.0,0.0001899,2]
[340715425,1729702246452,-151.0,0.0001899,2]
[340715426,1729702246462,-208.222262,0.0001899,2]
[340715427,1729702246471,-208.222262,0.0001899,2]
[340715428,1729702246481,-8225.95117725,0.00019,2]
[340715429,1729702246491,-3459.26158236,0.00019,2]
[340715430,1729702246500,-1500.0,0.00019,2]
[340715431,1729702246510,-1500.0,0.00019,2]
[340715432,1729702246520,-1500.0,0.00019,2]
[340715433,1729702246530,-1500.0,0.00019,2]
[340715434,1729702246540,-1500.0,0.00019,2]
[340715435,1729702246549,-1500.0,0.00019,2]
[340715436,1729702246559,-1500.0,0.00019,2]
[340715437,1729702246568,-1500.0,0.00019,2]
[340715438,1729702246577,-1572.91,0.00019,2]
[340715439,1729702246586,-1500.0,0.00019,2]
[340715440,1729702246596,-1500.0,0.00019,2]
[340715441,1729702246606,-159833.30914776,0.00019,2]
[340715442,1729702246629,-18261.88887747,0.00019,2]
[340715443,1729702246640,-12704.01486694,0.00019,2]
[340715550,1729703438259,-250.0,0.00013699,2]
[340715553,1729703438271,-361.0,0.00013973,2]
[340715555,1729703438282,-252.74696695,0.000172,2]
[340715569,1729703438413,-342.15303305,0.000172,2]
[340715571,1729703438424,-159.974343,0.0001742,2]
[340715573,1729703438434,-300.0,0.00017424,2]
[340715575,1729703438443,-300.0,0.00017424,2]
[340715577,1729703438454,-196.064,0.00017425,2]
[340715579,1729703438464,-527.0,0.00017425,2]
[340715581,1729703438476,-1804.0,0.00017425,2]
[340715583,1729703438485,-1154.0,0.00017425,2]
[340715584,1729703438495,-2723.9337664,0.00017526,2]
[340715586,1729703438504,-500.0,0.0001805,2]
[340715587,1729703438514,-159.974343,0.00018328,2]
[340715589,1729703438523,-500.0,0.0001855,2]
[340715591,1729703438534,-224.0,0.0001885,2]
[340715593,1729703438544,-156.0,0.000189,2]
[340715596,1729703438554,-178.49804832,0.000189,2]
[340715598,1729703438564,-154.51044611,0.000189,2]
[340715600,1729703438573,-154.51044609,0.00018953,2]
[340715602,1729703438583,-412.63495483,0.00018999,2]
[340715604,1729703438593,-6069.75980637,0.00018999,2]
[340715605,1729703438602,-256.0098814,0.00019,2]
[340715606,1729703438612,-402721.50283906,0.00019,2]
[340715607,1729703438625,-1725.96346913,0.00019,2]
[340715608,1729703438653,-662.732602,0.00019,2]
[340715635,1729703442295,-104090.58819764,0.00019,2]
[340715636,1729703442304,-151.0,0.00019,2]
[340715637,1729703442313,-186.003,0.00019,2]
[340715638,1729703442322,-4440.47541683,0.00019,2]
[340715639,1729703442332,-10000.0,0.00019,2]
[340715640,1729703442341,-10000.0,0.00019,2]
[340715641,1729703442350,-7181.56666823,0.00019,2]
[340715693,1729703443305,-2818.43333177,0.00019,2]
[340715695,1729703443314,-10000.0,0.00019,2]
[340715697,1729703443324,-570.32122,0.00019,2]
[340715752,1729703446578,-657.8,0.00019,2]
[340715753,1729703446607,-15480.902278,0.00019,2]
[340715754,1729703446617,-1364.0342296,0.00019,2]
[340715755,1729703446626,-1000.0,0.00019,2]
[340715756,1729703446636,-154.51044609,0.00019005,2]
[340715757,1729703446645,-420.0,0.00019022,2]
[340715758,1729703446654,-154.51044609,0.00019058,2]
[340715759,1729703446663,-991.47,0.00019068,2]
[340715760,1729703446673,-882.3298068,0.00019073,2]
[340715761,1729703446682,-55051.8421025,0.00019129,3]
[340715762,1729703446691,-307.80767083,0.00019137,2]
[340715763,1729703446701,-23949.1544456,0.00019138,3]
[340715764,1729703446710,-151.0,0.00019148,2]
[340715765,1729703446719,-165155.526308,0.00019148,3]
[340715766,1729703446730,-500.0,0.00019158,2]
[340715767,1729703446740,-600.0,0.00019158,2]
[340715768,1729703446749,-143694.926673,0.00019158,3]
[340715769,1729703446758,-55051.8421025,0.00019158,3]
[340715770,1729703446767,-151.0,0.00019168,2]
[340715771,1729703446777,-225.936176,0.00019168,2]
[340715772,1729703446786,-225.936176,0.00019168,2]
[340715773,1729703446795,-34666.17930634,0.00019168,3]
[340715774,1729703446818,-21725.15657716,0.00019168,3]
[340715786,1729704076213,750.0,0.00011,2]
[340715814,1729704632416,-250.0,0.00013699,2]
[340715816,1729704632426,-300.0,0.00015439,2]
[340715818,1729704632436,-189.557844,0.0001544,2]
[340715820,1729704632445,-167.228338,0.0001544,2]
[340715822,1729704632455,-185.556425,0.0001544,2]
[340715824,1729704632465,-189.557844,0.0001544,2]
[340715826,1729704632474,-185.913396,0.0001544,2]
[340715828,1729704632483,-297.461435,0.0001544,2]
[340715830,1729704632493,-227.469413,0.0001544,2]
[340715832,1729704632502,-185.913397,0.0001544,2]
[340715834,1729704632512,-189.557845,0.0001544,2]
[340715836,1729704632522,-185.556425,0.00015633,2]
[340715838,1729704632532,-147.2955703,0.00015633,2]
[340715844,1729704632567,-150.1658647,0.00015633,2]
[340715846,1729704632577,-227.469413,0.00015633,2]
[340715848,1729704632586,-185.913396,0.00015697,2]
[340715850,1729704632598,-93.4513263,0.00015697,2]
[340715914,1729704638639,-92.4620707,0.00015697,2]
[340715916,1729704638651,-189.557844,0.00015826,2]
[340715918,1729704638660,-185.556425,0.00015826,2]
[340715920,1729704638670,-189.557844,0.00015826,2]
[340715922,1729704638679,-297.461435,0.00015826,2]
[340715924,1729704638689,-227.469413,0.00015826,2]
[340715926,1729704638700,-189.557845,0.00015826,2]
[340715928,1729704638709,-500.46163535,0.000159,2]
[340715930,1729704638719,-510.72929659,0.00015933,2]
[340715932,1729704638728,-500.0,0.00015933,2]
[340715934,1729704638738,-500.0,0.00015933,2]
[340715936,1729704638747,-501.83538923,0.00015933,2]
[340715938,1729704638757,-466.61491984,0.00015933,2]
[340715940,1729704638767,-500.0,0.00015933,2]
[340715942,1729704638776,-500.61990762,0.00015933,2]
[340715944,1729704638786,-185.913396,0.00015955,2]
[340715946,1729704638796,-185.913397,0.00015955,2]
[340715948,1729704638806,-185.556425,0.00016019,2]
[340715950,1729704638815,-297.461435,0.00016019,2]
[340715952,1729704638825,-227.469413,0.00016019,2]
[340715954,1729704638835,-513.15540841,0.00016207,2]
[340715956,1729704638844,-500.0,0.00016207,2]
[340715958,1729704638854,-1000.0,0.00016207,2]
[340715960,1729704638864,-185.913396,0.00016212,2]
[340715962,1729704638874,-185.913397,0.00016212,2]
[340715964,1729704638884,-189.557844,0.00016212,2]
[340715966,1729704638897,-185.556425,0.00016212,2]
[340715968,1729704638907,-189.557844,0.00016212,2]
[340715970,1729704638917,-297.461435,0.00016212,2]
[340715972,1729704638927,-227.469413,0.00016212,2]
[340715974,1729704638937,-189.557845,0.00016212,2]
[340715975,1729704638947,-1500.0,0.00016608,2]
[340715977,1729704638956,-420.0,0.00016889,2]
[340715979,1729704638967,-2000.0,0.00017076,2]
[340715981,1729704638977,-553.01,0.000172,2]
[340715983,1729704638987,-1041.52326976,0.00017594,2]
[340715985,1729704638996,-3200.0,0.00017636,2]
[340715987,1729704639006,-284.159,0.00017636,2]
[340715989,1729704639016,-567.797,0.00017701,2]
[340715991,1729704639025,-500.0,0.00018145,2]
[340715993,1729704639035,-153.0,0.00018178,2]
[340715995,1729704639044,-153.0,0.00018178,2]
[340715997,1729704639054,-174.69303721,0.00018378,2]
[340715999,1729704639063,-153.0,0.00018378,2]
[340716001,1729704639072,-153.0,0.00018378,2]
[340716003,1729704639082,-600.0,0.00018401,2]
[340716005,1729704639091,-153.0,0.00018438,2]
[340716007,1729704639103,-153.0,0.00018438,2]
[340716009,1729704639112,-153.0,0.00018438,2]
[340716011,1729704639121,-153.0,0.00018438,2]
[340716013,1729704639131,-200.7743113,0.00018438,2]
[340716015,1729704639141,-533.53725378,0.00018466,2]
[340716017,1729704639151,-587.0,0.00018476,2]
[340716019,1729704639161,-153.0,0.00018478,2]
[340716021,1729704639170,-1000.0,0.00018527,2]